[Event "*** SCC Grand Prix: Titled Tuesday Blitz"]
[Site "Chess.com"]
[Date "2020.08.25"]
[Round "3"]
[White "IrinaDrogovoz"]
[Black "seorobert1971"]
[Result "1/2-1/2"]
[WhiteElo "2318"]
[BlackElo "2636"]
[TimeControl "180+1"]
[EndTime "10:32:14 PDT"]
[Termination "Game drawn - insufficient material"]

1. d4 {[%clk 0:03:00.7]} 1... Nf6 {[%clk 0:02:59.9]} 2. c4 {[%clk 0:03:00.3]}
2... e6 {[%clk 0:02:58.6]} 3. Nc3 {[%clk 0:03:00.5]} 3... Bb4 {[%clk 0:02:57.6]}
4. Nf3 {[%clk 0:02:57]} 4... Bxc3+ {[%clk 0:02:56.4]} 5. bxc3 {[%clk 0:02:57]}
5... O-O {[%clk 0:02:55.9]} 6. Qd3 {[%clk 0:02:55.3]} 6... d5 {[%clk 0:02:50.5]}
7. Bg5 {[%clk 0:02:55.8]} 7... b6 {[%clk 0:02:49.1]} 8. cxd5 {[%clk 0:02:48]}
8... exd5 {[%clk 0:02:48.9]} 9. e3 {[%clk 0:02:48]} 9... h6 {[%clk 0:02:40.7]}
10. Bh4 {[%clk 0:02:47.5]} 10... c5 {[%clk 0:02:39.8]} 11. Be2 {[%clk
0:02:46.4]} 11... c4 {[%clk 0:02:39.3]} 12. Qc2 {[%clk 0:02:46]} 12... Nbd7
{[%clk 0:02:29.6]} 13. O-O {[%clk 0:02:45.7]} 13... g5 {[%clk 0:02:28.9]} 14.
Bg3 {[%clk 0:02:42.9]} 14... Ne4 {[%clk 0:02:26.8]} 15. Ne5 {[%clk 0:02:35.7]}
15... Qe7 {[%clk 0:02:15.1]} 16. Nxd7 {[%clk 0:02:33.5]} 16... Bxd7 {[%clk
0:02:15]} 17. Be5 {[%clk 0:02:33.5]} 17... f6 {[%clk 0:02:13.4]} 18. Bg3 {[%clk
0:02:31.2]} 18... b5 {[%clk 0:02:08.2]} 19. a4 {[%clk 0:02:30.3]} 19... bxa4
{[%clk 0:01:55.1]} 20. Bf3 {[%clk 0:02:06.9]} 20... Rfe8 {[%clk 0:01:37.3]} 21.
Bh5 {[%clk 0:02:05.2]} 21... Rec8 {[%clk 0:01:31.6]} 22. Rfe1 {[%clk 0:02:05]}
22... Kh8 {[%clk 0:01:00.4]} 23. f3 {[%clk 0:02:04.4]} 23... Nxg3 {[%clk
0:01:00.2]} 24. hxg3 {[%clk 0:02:04.6]} 24... Qd6 {[%clk 0:00:56]} 25. Kf2
{[%clk 0:02:04.7]} 25... f5 {[%clk 0:00:54.4]} 26. Rh1 {[%clk 0:02:03.7]} 26...
Kg7 {[%clk 0:00:53.3]} 27. g4 {[%clk 0:01:39.8]} 27... fxg4 {[%clk 0:00:47.6]}
28. Bxg4 {[%clk 0:01:39]} 28... Bxg4 {[%clk 0:00:47.4]} 29. fxg4 {[%clk
0:01:39.6]} 29... Rf8+ {[%clk 0:00:47.2]} 30. Kg1 {[%clk 0:01:36]} 30... a3
{[%clk 0:00:37.6]} 31. e4 {[%clk 0:01:33.5]} 31... Qf4 {[%clk 0:00:32.2]} 32.
exd5 {[%clk 0:01:20.9]} 32... Qe3+ {[%clk 0:00:31]} 33. Kh2 {[%clk 0:01:21.5]}
33... Rf2 {[%clk 0:00:27.4]} 34. Qc1 {[%clk 0:01:20.7]} 34... Qe2 {[%clk
0:00:26.5]} 35. Qg1 {[%clk 0:00:54.9]} 35... Raf8 {[%clk 0:00:22.5]} 36. Kh3
{[%clk 0:00:47.7]} 36... R8f4 {[%clk 0:00:19.3]} 37. Qd1 {[%clk 0:00:43.7]}
37... Qe3+ {[%clk 0:00:17.2]} 38. g3 {[%clk 0:00:43.7]} 38... R4f3 {[%clk
0:00:16.7]} 39. Rg1 {[%clk 0:00:40.2]} 39... a2 {[%clk 0:00:13.5]} 40. d6 {[%clk
0:00:36.6]} 40... Rf7 {[%clk 0:00:11.6]} 41. Qe1 {[%clk 0:00:31.2]} 41... Qxe1
{[%clk 0:00:10.2]} 42. Rgxe1 {[%clk 0:00:31.2]} 42... Kf6 {[%clk 0:00:09.9]} 43.
Re5 {[%clk 0:00:28.6]} 43... Rd7 {[%clk 0:00:09.3]} 44. Ra5 {[%clk 0:00:28.2]}
44... Rxd6 {[%clk 0:00:07.7]} 45. Rxa7 {[%clk 0:00:28.1]} 45... Rf3 {[%clk
0:00:07.2]} 46. Ra3 {[%clk 0:00:20.4]} 46... Re6 {[%clk 0:00:02.9]} 47. R1xa2
{[%clk 0:00:20.3]} 47... Ree3 {[%clk 0:00:02.7]} 48. Ra6+ {[%clk 0:00:18.4]}
48... Kg7 {[%clk 0:00:02.6]} 49. Rc6 {[%clk 0:00:16.1]} 49... Rxc3 {[%clk
0:00:01.9]} 50. Ra7+ {[%clk 0:00:15.7]} 50... Rf7 {[%clk 0:00:02.8]} 51. Rxf7+
{[%clk 0:00:14.6]} 51... Kxf7 {[%clk 0:00:03.7]} 52. Rxh6 {[%clk 0:00:14.9]}
52... Rd3 {[%clk 0:00:04]} 53. Rh5 {[%clk 0:00:13.4]} 53... Kg6 {[%clk
0:00:03.6]} 54. Rh8 {[%clk 0:00:12.1]} 54... Rxd4 {[%clk 0:00:03.8]} 55. Rc8
{[%clk 0:00:12.8]} 55... Kf6 {[%clk 0:00:03.9]} 56. Rc5 {[%clk 0:00:12]} 56...
Re4 {[%clk 0:00:03]} 57. Rf5+ {[%clk 0:00:11.8]} 57... Kg6 {[%clk 0:00:03]} 58.
Rc5 {[%clk 0:00:12.3]} 58... Rd4 {[%clk 0:00:03.5]} 59. Rc6+ {[%clk 0:00:11.5]}
59... Kf7 {[%clk 0:00:04.4]} 60. Rc5 {[%clk 0:00:12]} 60... Kf6 {[%clk
0:00:05.1]} 61. Rf5+ {[%clk 0:00:12.1]} 61... Ke6 {[%clk 0:00:04.2]} 62. Rxg5
{[%clk 0:00:11.6]} 62... Kd6 {[%clk 0:00:04.5]} 63. Rg8 {[%clk 0:00:10.7]} 63...
Kd5 {[%clk 0:00:03.5]} 64. Rd8+ {[%clk 0:00:11]} 64... Ke4 {[%clk 0:00:03.2]}
65. Rc8 {[%clk 0:00:11.5]} 65... Kd3 {[%clk 0:00:03.2]} 66. g5 {[%clk
0:00:11.9]} 66... c3 {[%clk 0:00:03.3]} 67. g6 {[%clk 0:00:12.5]} 67... Rd6
{[%clk 0:00:03.3]} 68. g7 {[%clk 0:00:11.7]} 68... Rh6+ {[%clk 0:00:01.9]} 69.
Kg4 {[%clk 0:00:11.6]} 69... Rg6+ {[%clk 0:00:01]} 70. Kf5 {[%clk 0:00:12.2]}
70... Rxg7 {[%clk 0:00:01.9]} 71. g4 {[%clk 0:00:12.7]} 71... c2 {[%clk
0:00:01.3]} 72. g5 {[%clk 0:00:12.8]} 72... Rxg5+ {[%clk 0:00:01.4]} 73. Kxg5
{[%clk 0:00:12.9]} 73... Kd2 {[%clk 0:00:02.3]} 74. Rxc2+ {[%clk 0:00:12.7]}
74... Kxc2 {[%clk 0:00:02.2]} 1/2-1/2

[Event "*** SCC Grand Prix: Titled Tuesday Blitz"]
[Site "Chess.com"]
[Date "2020.08.25"]
[Round "3"]
[White "Grootneus"]
[Black "stepanosinovsky"]
[Result "1/2-1/2"]
[WhiteElo "2168"]
[BlackElo "2382"]
[TimeControl "180+1"]
[EndTime "10:32:32 PDT"]
[Termination "Game drawn by repetition"]

1. e4 {[%clk 0:02:57]} 1... e5 {[%clk 0:02:58.9]} 2. Nf3 {[%clk 0:02:56.7]} 2...
Nc6 {[%clk 0:02:58.2]} 3. Bb5 {[%clk 0:02:54.4]} 3... a6 {[%clk 0:02:58.6]} 4.
Ba4 {[%clk 0:02:54.2]} 4... Nf6 {[%clk 0:02:58.8]} 5. d3 {[%clk 0:02:54.2]} 5...
b5 {[%clk 0:02:57.3]} 6. Bb3 {[%clk 0:02:54.8]} 6... Be7 {[%clk 0:02:57.7]} 7.
a4 {[%clk 0:02:55.5]} 7... b4 {[%clk 0:02:56.3]} 8. O-O {[%clk 0:02:54.4]} 8...
O-O {[%clk 0:02:56.3]} 9. a5 {[%clk 0:02:54.7]} 9... d5 {[%clk 0:02:55.2]} 10.
exd5 {[%clk 0:02:51.4]} 10... Nxd5 {[%clk 0:02:56.1]} 11. Re1 {[%clk 0:02:51.4]}
11... Bb7 {[%clk 0:02:55]} 12. Nxe5 {[%clk 0:02:40.9]} 12... Nxe5 {[%clk
0:02:55.9]} 13. Rxe5 {[%clk 0:02:41.7]} 13... Bf6 {[%clk 0:02:49.8]} 14. Re1
{[%clk 0:02:38.6]} 14... Re8 {[%clk 0:02:36.9]} 15. Nd2 {[%clk 0:02:18.9]} 15...
Rxe1+ {[%clk 0:02:27.5]} 16. Qxe1 {[%clk 0:02:19.8]} 16... Qd7 {[%clk
0:02:21.7]} 17. Ne4 {[%clk 0:02:14.5]} 17... Bd4 {[%clk 0:02:22.1]} 18. Be3
{[%clk 0:01:50.9]} 18... Nxe3 {[%clk 0:02:07.1]} 19. fxe3 {[%clk 0:01:51.8]}
19... Bxe4 {[%clk 0:02:05.2]} 20. dxe4 {[%clk 0:01:39.5]} 20... Bxb2 {[%clk
0:02:04.1]} 21. Rd1 {[%clk 0:01:39.9]} 21... Qe7 {[%clk 0:02:01.5]} 22. Qf2
{[%clk 0:01:26.6]} 22... Bf6 {[%clk 0:01:46.3]} 23. Qf5 {[%clk 0:00:27.8]} 23...
Rd8 {[%clk 0:01:38.2]} 24. Rxd8+ {[%clk 0:00:20]} 24... Qxd8 {[%clk 0:01:39.1]}
25. Qd5 {[%clk 0:00:20.4]} 25... c6 {[%clk 0:01:14.4]} 26. Qxf7+ {[%clk
0:00:19.3]} 26... Kh8 {[%clk 0:01:13.7]} 27. Qc4 {[%clk 0:00:11.3]} 27... Qd1+
{[%clk 0:01:04.6]} 28. Kf2 {[%clk 0:00:08.8]} 28... Qd2+ {[%clk 0:01:03.6]} 29.
Qe2 {[%clk 0:00:08.9]} 29... Qxe2+ {[%clk 0:01:01.4]} 30. Kxe2 {[%clk
0:00:09.8]} 30... Bd8 {[%clk 0:00:58.8]} 31. Bc4 {[%clk 0:00:08.6]} 31... Bxa5
{[%clk 0:00:58.2]} 32. Bxa6 {[%clk 0:00:09.1]} 32... Kg8 {[%clk 0:00:59.1]} 33.
Bb7 {[%clk 0:00:07.6]} 33... Kf7 {[%clk 0:00:45.9]} 34. Kd3 {[%clk 0:00:07.6]}
34... Ke6 {[%clk 0:00:42.5]} 35. Bxc6 {[%clk 0:00:08]} 35... Bd8 {[%clk
0:00:38.4]} 36. Bd5+ {[%clk 0:00:08.1]} 36... Ke5 {[%clk 0:00:38]} 37. Kc4
{[%clk 0:00:08.4]} 37... Be7 {[%clk 0:00:37.2]} 38. h3 {[%clk 0:00:08.3]} 38...
h6 {[%clk 0:00:36.1]} 39. Kd3 {[%clk 0:00:08.7]} 39... Bc5 {[%clk 0:00:35.4]}
40. Bf7 {[%clk 0:00:08.5]} 40... Bd6 {[%clk 0:00:31.4]} 41. Bg6 {[%clk
0:00:08.3]} 41... Kf6 {[%clk 0:00:30.8]} 42. Bf5 {[%clk 0:00:08.7]} 42... Ke5
{[%clk 0:00:31.7]} 43. Bd7 {[%clk 0:00:08.7]} 43... g6 {[%clk 0:00:31]} 44. Be8
{[%clk 0:00:08.8]} 44... g5 {[%clk 0:00:30.3]} 45. Bh5 {[%clk 0:00:09.5]} 45...
Be7 {[%clk 0:00:29.7]} 46. Bg4 {[%clk 0:00:09.5]} 46... Bf8 {[%clk 0:00:28.9]}
47. Bf5 {[%clk 0:00:09.5]} 47... Be7 {[%clk 0:00:28.8]} 48. Kc4 {[%clk 0:00:10]}
48... Bf8 {[%clk 0:00:27.4]} 49. Kd3 {[%clk 0:00:09.8]} 49... h5 {[%clk
0:00:27]} 50. Bg6 {[%clk 0:00:09.3]} 50... h4 {[%clk 0:00:26.8]} 51. Bf5 {[%clk
0:00:10]} 51... Bg7 {[%clk 0:00:26.3]} 52. Kc4 {[%clk 0:00:10.7]} 52... Bf8
{[%clk 0:00:27.2]} 53. Kb5 {[%clk 0:00:10.5]} 53... Be7 {[%clk 0:00:25.1]} 54.
Kc6 {[%clk 0:00:10.7]} 54... Bf8 {[%clk 0:00:24.4]} 55. Kd7 {[%clk 0:00:11]}
55... Bc5 {[%clk 0:00:24]} 56. Ke8 {[%clk 0:00:09.8]} 56... Bxe3 {[%clk
0:00:24.9]} 57. Kf7 {[%clk 0:00:08.7]} 57... Bd4 {[%clk 0:00:22.8]} 58. Kg6
{[%clk 0:00:08.5]} 58... Kf4 {[%clk 0:00:23.5]} 59. Kh5 {[%clk 0:00:06.8]} 59...
Bf6 {[%clk 0:00:20.8]} 60. Kg6 {[%clk 0:00:06.8]} 60... Bd8 {[%clk 0:00:20.2]}
61. Kf7 {[%clk 0:00:04.5]} 61... Bb6 {[%clk 0:00:16]} 62. Kg6 {[%clk 0:00:03.3]}
62... Bd4 {[%clk 0:00:16.9]} 63. Kh5 {[%clk 0:00:02.1]} 63... Be3 {[%clk
0:00:16.6]} 64. Kg6 {[%clk 0:00:02.7]} 64... Ke5 {[%clk 0:00:16.4]} 65. Kh5
{[%clk 0:00:03]} 65... Bf4 {[%clk 0:00:16.1]} 66. Kg4 {[%clk 0:00:03.9]} 66...
Kd4 {[%clk 0:00:15.3]} 67. Kf3 {[%clk 0:00:04.4]} 67... Be5 {[%clk 0:00:15.2]}
68. Be6 {[%clk 0:00:03.8]} 68... Kc3 {[%clk 0:00:14.8]} 69. Bb3 {[%clk
0:00:04.7]} 69... Kd2 {[%clk 0:00:13.8]} 70. Ba4 {[%clk 0:00:05.6]} 70... Ke1
{[%clk 0:00:13.1]} 71. Bb3 {[%clk 0:00:06.5]} 71... Kf1 {[%clk 0:00:12.6]} 72.
Ba4 {[%clk 0:00:07.4]} 72... Ke1 {[%clk 0:00:11.8]} 73. Bb3 {[%clk 0:00:08.3]}
73... Kd2 {[%clk 0:00:11.8]} 74. Ba4 {[%clk 0:00:08.6]} 74... Kc3 {[%clk
0:00:11.7]} 75. Bb3 {[%clk 0:00:08.9]} 75... Kb2 {[%clk 0:00:11]} 76. Ba4 {[%clk
0:00:08.7]} 76... Ka3 {[%clk 0:00:10.6]} 77. Bb3 {[%clk 0:00:09.4]} 77... Kb2
{[%clk 0:00:09.9]} 78. Kg4 {[%clk 0:00:10.3]} 78... Bf4 {[%clk 0:00:10.5]} 79.
e5 {[%clk 0:00:09.7]} 79... Bxe5 {[%clk 0:00:10.2]} 80. Kxg5 {[%clk 0:00:10.3]}
80... Bg3 {[%clk 0:00:11.1]} 81. Kg4 {[%clk 0:00:10.7]} 81... Kc3 {[%clk
0:00:12]} 82. Kf3 {[%clk 0:00:11]} 82... Kd4 {[%clk 0:00:11.6]} 83. Ba4 {[%clk
0:00:10.8]} 83... Ke5 {[%clk 0:00:11.5]} 84. Bb3 {[%clk 0:00:11.7]} 84... Kf5
{[%clk 0:00:11.7]} 85. Ba4 {[%clk 0:00:12.3]} 85... Kg5 {[%clk 0:00:12.6]} 86.
Bb3 {[%clk 0:00:12.9]} 86... Be5 {[%clk 0:00:12.9]} 87. Ba4 {[%clk 0:00:13.1]}
87... Bc3 {[%clk 0:00:13.8]} 88. Bb3 {[%clk 0:00:13.2]} 88... Bb2 {[%clk
0:00:14.7]} 89. Be6 {[%clk 0:00:13.3]} 89... Bc3 {[%clk 0:00:15.6]} 90. Bg4
{[%clk 0:00:13.6]} 90... Bb2 {[%clk 0:00:16.5]} 91. Be6 {[%clk 0:00:14.3]} 91...
Bc3 {[%clk 0:00:17.4]} 92. Bb3 {[%clk 0:00:15.2]} 92... Bb2 {[%clk 0:00:18.3]}
93. Ba4 {[%clk 0:00:15.6]} 93... Bc3 {[%clk 0:00:19.2]} 94. Bb3 {[%clk
0:00:16.5]} 1/2-1/2

[Event "*** SCC Grand Prix: Titled Tuesday Blitz"]
[Site "Chess.com"]
[Date "2020.08.25"]
[Round "3"]
[White "mfwagnerpeixoto"]
[Black "romulocardoso"]
[Result "0-1"]
[WhiteElo "2260"]
[BlackElo "2008"]
[TimeControl "180+1"]
[EndTime "10:32:37 PDT"]
[Termination "romulocardoso won on time"]

1. d4 {[%clk 0:03:00.9]} 1... Nf6 {[%clk 0:02:59.7]} 2. Nf3 {[%clk 0:03:00.7]}
2... e6 {[%clk 0:02:59.7]} 3. c3 {[%clk 0:03:01.2]} 3... d5 {[%clk 0:02:59.7]}
4. Qc2 {[%clk 0:03:00]} 4... b6 {[%clk 0:02:59.5]} 5. Bg5 {[%clk 0:02:58.1]}
5... Bb7 {[%clk 0:02:59.7]} 6. Nbd2 {[%clk 0:02:58.1]} 6... Nbd7 {[%clk
0:02:59.8]} 7. e3 {[%clk 0:02:54.3]} 7... h6 {[%clk 0:02:59.3]} 8. Bh4 {[%clk
0:02:53.1]} 8... Be7 {[%clk 0:02:58.7]} 9. Bd3 {[%clk 0:02:52.7]} 9... O-O
{[%clk 0:02:55.3]} 10. O-O {[%clk 0:02:51.8]} 10... Rc8 {[%clk 0:02:52.3]} 11.
Qa4 {[%clk 0:02:47.2]} 11... Rb8 {[%clk 0:02:53.2]} 12. Qxa7 {[%clk 0:02:36.7]}
12... Ne4 {[%clk 0:02:46.8]} 13. Bxe7 {[%clk 0:02:33.2]} 13... Qxe7 {[%clk
0:02:47.7]} 14. Qa4 {[%clk 0:02:19.7]} 14... c5 {[%clk 0:02:42.8]} 15. Qc2
{[%clk 0:02:15.3]} 15... f5 {[%clk 0:02:36.9]} 16. Bb5 {[%clk 0:02:07.4]} 16...
g5 {[%clk 0:02:23.3]} 17. Bxd7 {[%clk 0:02:04.9]} 17... Qxd7 {[%clk 0:02:24.2]}
18. Ne5 {[%clk 0:02:04.9]} 18... Qe7 {[%clk 0:02:18.3]} 19. f3 {[%clk
0:02:05.3]} 19... Nxd2 {[%clk 0:02:17.6]} 20. Qxd2 {[%clk 0:02:06.2]} 20... Qf6
{[%clk 0:02:17.2]} 21. Rae1 {[%clk 0:02:03]} 21... Ra8 {[%clk 0:02:14.8]} 22. a3
{[%clk 0:02:01.9]} 22... Qe7 {[%clk 0:02:13.6]} 23. f4 {[%clk 0:01:56.7]} 23...
g4 {[%clk 0:02:12.8]} 24. g3 {[%clk 0:01:57.1]} 24... Kg7 {[%clk 0:02:10]} 25.
Qg2 {[%clk 0:01:51.6]} 25... c4 {[%clk 0:02:06.5]} 26. Kf2 {[%clk 0:01:51.3]}
26... b5 {[%clk 0:02:06.4]} 27. Rh1 {[%clk 0:01:50]} 27... Rh8 {[%clk
0:02:06.5]} 28. h3 {[%clk 0:01:48.9]} 28... h5 {[%clk 0:02:06.7]} 29. hxg4
{[%clk 0:01:47.1]} 29... hxg4 {[%clk 0:02:07.6]} 30. Rxh8 {[%clk 0:01:45.4]}
30... Rxh8 {[%clk 0:02:08.5]} 31. Rh1 {[%clk 0:01:44.8]} 31... Qe8 {[%clk
0:02:09.2]} 32. Rxh8 {[%clk 0:01:39]} 32... Qxh8 {[%clk 0:02:10.1]} 33. Kg1
{[%clk 0:01:38.7]} 33... Qa8 {[%clk 0:02:07.6]} 34. Qh2 {[%clk 0:01:34.8]} 34...
Qa4 {[%clk 0:02:07.8]} 35. Qd2 {[%clk 0:01:27.7]} 35... Qb3 {[%clk 0:02:04.4]}
36. Nd7 {[%clk 0:01:22]} 36... Qa2 {[%clk 0:02:02.3]} 37. Nc5 {[%clk 0:01:21.6]}
37... Bc8 {[%clk 0:01:59.1]} 38. Qc2 {[%clk 0:01:15.5]} 38... Qa1+ {[%clk
0:01:57.6]} 39. Kg2 {[%clk 0:01:14.6]} 39... Qe1 {[%clk 0:01:57.3]} 40. Qf2
{[%clk 0:01:11.1]} 40... Qb1 {[%clk 0:01:55]} 41. Kh2 {[%clk 0:01:05.8]} 41...
Kf6 {[%clk 0:01:49]} 42. a4 {[%clk 0:01:04.3]} 42... bxa4 {[%clk 0:01:47.5]} 43.
Nxa4 {[%clk 0:01:05.2]} 43... Qa2 {[%clk 0:01:42.2]} 44. Nc5 {[%clk 0:01:03.2]}
44... Qa7 {[%clk 0:01:40.5]} 45. e4 {[%clk 0:00:55.7]} 45... Qh7+ {[%clk
0:01:36.9]} 46. Kg1 {[%clk 0:00:55]} 46... fxe4 {[%clk 0:01:35.9]} 47. Qe3
{[%clk 0:00:50.2]} 47... Qa7 {[%clk 0:01:33.1]} 48. f5 {[%clk 0:00:46.9]} 48...
Qa1+ {[%clk 0:01:29.2]} 49. Kg2 {[%clk 0:00:46.9]} 49... Qxb2+ {[%clk
0:01:29.3]} 50. Kg1 {[%clk 0:00:47.1]} 50... Qb1+ {[%clk 0:01:25.3]} 51. Kh2
{[%clk 0:00:42.7]} 51... Qc2+ {[%clk 0:01:23.9]} 52. Kg1 {[%clk 0:00:41.1]}
52... Qd1+ {[%clk 0:01:23.7]} 53. Kh2 {[%clk 0:00:40.8]} 53... Qf3 {[%clk
0:00:59.2]} 54. Qh6+ {[%clk 0:00:36.5]} 54... Kxf5 {[%clk 0:00:58.4]} 55. Qf8+
{[%clk 0:00:32.9]} 55... Kg5 {[%clk 0:00:58.1]} 56. Qxc8 {[%clk 0:00:28.7]}
56... Qf2+ {[%clk 0:00:55.9]} 57. Kh1 {[%clk 0:00:28.4]} 57... Qf1+ {[%clk
0:00:55.8]} 58. Kh2 {[%clk 0:00:28.6]} 58... Qe2+ {[%clk 0:00:53.5]} 59. Kh1
{[%clk 0:00:28.2]} 59... Qe1+ {[%clk 0:00:53.4]} 60. Kh2 {[%clk 0:00:28.2]}
60... Qxc3 {[%clk 0:00:43.5]} 61. Nxe6+ {[%clk 0:00:23.7]} 61... Kf6 {[%clk
0:00:42.7]} 62. Nf4 {[%clk 0:00:18.5]} 62... Qd2+ {[%clk 0:00:38.5]} 63. Ng2
{[%clk 0:00:16]} 63... c3 {[%clk 0:00:38.5]} 64. Qc6+ {[%clk 0:00:13.7]} 64...
Ke7 {[%clk 0:00:37.7]} 65. Qxd5 {[%clk 0:00:12.2]} 65... c2 {[%clk 0:00:37.7]}
66. Qxe4+ {[%clk 0:00:11.7]} 66... Kd7 {[%clk 0:00:36.8]} 67. Qxg4+ {[%clk
0:00:10.9]} 67... Kc7 {[%clk 0:00:37.1]} 68. Qg7+ {[%clk 0:00:09.9]} 68... Kb6
{[%clk 0:00:37.1]} 69. Qf6+ {[%clk 0:00:09]} 69... Kb5 {[%clk 0:00:37]} 70. Qe5+
{[%clk 0:00:06.8]} 70... Kc4 {[%clk 0:00:37.1]} 71. Qc5+ {[%clk 0:00:06.2]}
71... Kb3 {[%clk 0:00:37.3]} 72. Qb5+ {[%clk 0:00:04.6]} 72... Qb4 {[%clk
0:00:37.3]} 73. Qd3+ {[%clk 0:00:02.9]} 73... Qc3 {[%clk 0:00:37.3]} 74. Qb5+
{[%clk 0:00:01.6]} 74... Ka2 {[%clk 0:00:37.3]} 75. Qa6+ {[%clk 0:00:01.4]}
75... Kb1 {[%clk 0:00:37.2]} 76. Qb5+ {[%clk 0:00:01.8]} 76... Qb2 {[%clk
0:00:37.4]} 77. Qf1+ {[%clk 0:00:01.3]} 77... c1=Q {[%clk 0:00:36.9]} 78. Qxc1+
{[%clk 0:00:02.2]} 78... Kxc1 {[%clk 0:00:36.8]} 79. d5 {[%clk 0:00:02.1]} 79...
Qh8+ {[%clk 0:00:35.7]} 80. Nh4 {[%clk 0:00:01.4]} 80... Qd8 {[%clk 0:00:35.1]}
81. Kh3 {[%clk 0:00:02.3]} 81... Qxd5 {[%clk 0:00:35]} 82. Kg4 {[%clk 0:00:02]}
82... Qe6+ {[%clk 0:00:34.1]} 83. Nf5 {[%clk 0:00:01.6]} 83... Kd2 {[%clk
0:00:34.2]} 84. Kf4 {[%clk 0:00:02]} 84... Kd3 {[%clk 0:00:33]} 85. g4 {[%clk
0:00:02]} 85... Qf6 {[%clk 0:00:32.1]} 86. g5 {[%clk 0:00:01]} 86... Qf7 {[%clk
0:00:31.3]} 87. Ke5 {[%clk 0:00:01.9]} 87... Qc7+ {[%clk 0:00:29.5]} 88. Kf6
{[%clk 0:00:02.8]} 88... Ke4 {[%clk 0:00:27.5]} 89. Ne7 {[%clk 0:00:02.3]} 89...
Qe5+ {[%clk 0:00:25.8]} 90. Kf7 {[%clk 0:00:02.2]} 90... Qxg5 {[%clk 0:00:25]}
91. Ke8 {[%clk 0:00:01.4]} 91... Ke5 {[%clk 0:00:24.4]} 0-1